[Event "Fast Chess"]
[Site "ChessKid.com"]
[Date "2020.04.17"]
[Round "1"]
[White "Sasse, Gabrie"]
[Black "Li, Tobias"]
[Result "1-0"]
[ECO "C55"]
[WhiteElo "1240"]
[BlackElo "1268"]
[PlyCount "155"]
[EventDate "2020.??.??"]
[TimeControl "300+50"]
[WhiteClock "0:02:56"]
[BlackClock "0:04:47"]

1. e4 {[%emt 0:00:45]} e5 {[%emt 0:00:48]} 2. Nf3 {[%emt 0:00:46]} Nc6 {
[%emt 0:00:47]} 3. Bc4 {[%emt 0:00:46]} Nf6 {[%emt 0:00:51]} 4. Nc3 {[%emt 0:
00:46]} Bc5 {[%emt 0:00:49]} 5. h3 {[%emt 0:00:49]} h6 {[%emt 0:00:48]} 6. Nd5
{[%emt 0:00:59]} Nxd5 {[%emt 0:00:48]} 7. exd5 {[%emt 0:00:46]} Nb4 {[%emt 0:
00:47]} 8. d6 {[%emt 0:00:47]} Bxd6 {[%emt 0:00:48]} 9. O-O {[%emt 0:00:50]}
Nc6 {[%emt 0:00:47]} 10. d3 {[%emt 0:00:52]} O-O {[%emt 0:00:48]} 11. Qe2 {
[%emt 0:00:47]} Re8 {[%emt 0:00:52]} 12. Bb3 {[%emt 0:00:48]} Bb4 {[%emt 0:00:
49]} 13. c3 {[%emt 0:00:48]} Bc5 {[%emt 0:00:48]} 14. d4 {[%emt 0:00:47]} exd4
{[%emt 0:00:47]} 15. Qd3 {[%emt 0:00:50]} dxc3 {[%emt 0:00:47]} 16. Bc2 {
[%emt 0:00:46]} cxb2 {[%emt 0:00:48]} 17. Qh7+ {[%emt 0:00:47]} Kf8 {[%emt 0:
00:47]} 18. Bxb2 {[%emt 0:00:53]} f6 {[%emt 0:01:19]} 19. Qh8+ {[%emt 0:00:55]}
Kf7 {[%emt 0:00:47]} 20. Bb3+ {[%emt 0:00:47]} Ke7 {[%emt 0:00:47]} 21. Rfe1+ {
[%emt 0:00:46]} Kd6 {[%emt 0:00:46]} 22. Rad1+ {[%emt 0:00:52]} Nd4 {[%emt 0:
00:48]} 23. Qxg7 {[%emt 0:00:52]} Rxe1+ {[%emt 0:00:48]} 24. Rxe1 {[%emt 0:00:
49]} Nxf3+ {[%emt 0:00:51]} 25. Kf1 {[%emt 0:01:02]} Nxe1 {[%emt 0:00:59]} 26.
Qg3+ {[%emt 0:00:47]} Ke7 {[%emt 0:00:49]} 27. Kxe1 {[%emt 0:00:55]} Bb4+ {
[%emt 0:00:49]} 28. Ke2 {[%emt 0:00:47]} d6 {[%emt 0:01:04]} 29. Qf3 {[%emt 0:
00:48]} Qe8 {[%emt 0:00:51]} 30. Kf1 {[%emt 0:00:58]} Kd7 {[%emt 0:00:59]} 31.
Qf5+ {[%emt 0:00:54]} Kd8 {[%emt 0:00:47]} 32. Bxf6+ {[%emt 0:00:48]} Qe7 {
[%emt 0:00:50]} 33. Bxe7+ {[%emt 0:00:47]} Kxe7 {[%emt 0:00:47]} 34. Qh7+ {
[%emt 0:00:48]} Kd8 {[%emt 0:00:50]} 35. Qf7 {[%emt 0:00:55]} Bd7 {[%emt 0:01:
02]} 36. Bd1 {[%emt 0:00:52]} c6 {[%emt 0:00:57]} 37. Bh5 {[%emt 0:00:47]} Kc7
{[%emt 0:00:51]} 38. Bg4 {[%emt 0:00:50]} Rd8 {[%emt 0:00:55]} 39. Bxd7 {
[%emt 0:00:55]} Rxd7 {[%emt 0:00:47]} 40. Qh5 {[%emt 0:00:49]} Re7 {[%emt 0:00:
48]} 41. f3 {[%emt 0:00:52]} Re6 {[%emt 0:01:13]} 42. f4 {[%emt 0:00:49]} d5 {
[%emt 0:00:59]} 43. Qf7+ {[%emt 0:00:49]} Re7 {[%emt 0:00:49]} 44. Qg6 {
[%emt 0:00:52]} Re1+ {[%emt 0:00:51]} 45. Kf2 {[%emt 0:00:48]} Ra1 {[%emt 0:00:
54]} 46. f5 {[%emt 0:00:47]} Rxa2+ {[%emt 0:00:50]} 47. Kg3 {[%emt 0:00:52]}
Bd6+ {[%emt 0:00:49]} 48. Kf3 {[%emt 0:00:49]} Ra3+ {[%emt 0:00:48]} 49. Kf2 {
[%emt 0:00:47]} Bg3+ {[%emt 0:00:53]} 50. Kf1 {[%emt 0:00:52]} Ra1+ {[%emt 0:
00:57]} 51. Ke2 {[%emt 0:00:46]} Ra2+ {[%emt 0:00:47]} 52. Kd3 {[%emt 0:00:47]}
Ra3+ {[%emt 0:00:47]} 53. Kd4 {[%emt 0:00:51]} Bf2+ {[%emt 0:00:49]} 54. Ke5 {
[%emt 0:00:50]} Re3+ {[%emt 0:00:48]} 55. Kf6 {[%emt 0:00:47]} Kd7 {[%emt 0:01:
00]} 56. Qg7+ {[%emt 0:01:06]} Kd6 {[%emt 0:00:48]} 57. Qxh6 {[%emt 0:00:50]}
Re8 {[%emt 0:00:59]} 58. Kf7+ {[%emt 0:00:54]} Kd7 {[%emt 0:00:54]} 59. f6 {
[%emt 0:00:53]} b5 {[%emt 0:00:58]} 60. Kg6 {[%emt 0:00:52]} Re6 {[%emt 0:00:
50]} 61. Qf8 {[%emt 0:00:51]} Bd4 {[%emt 0:00:51]} 62. Qf7+ {[%emt 0:00:48]}
Kd6 {[%emt 0:00:47]} 63. Qf8+ {[%emt 0:00:52]} Kd7 {[%emt 0:00:48]} 64. Qg7+ {
[%emt 0:01:02]} Kd6 {[%emt 0:00:50]} 65. Qh7 {[%emt 0:00:50]} Rxf6+ {[%emt 0:
00:54]} 66. Kg5 {[%emt 0:00:49]} Rf7 {[%emt 0:01:03]} 67. Qh5 {[%emt 0:00:52]}
Re7 {[%emt 0:01:03]} 68. Qh4 {[%emt 0:00:53]} Ke6 {[%emt 0:00:57]} 69. Qxd4 {
[%emt 0:00:51]} a5 {[%emt 0:00:58]} 70. Qf6+ {[%emt 0:00:47]} Kd7 {[%emt 0:00:
50]} 71. Qa1 {[%emt 0:00:51]} a4 {[%emt 0:00:49]} 72. Qb2 {[%emt 0:00:50]} Kd6
{[%emt 0:00:51]} 73. Qb4+ {[%emt 0:00:48]} Kc7 {[%emt 0:00:50]} 74. Kf6 {
[%emt 0:00:49]} Rd7 {[%emt 0:00:51]} 75. Qf4+ {[%emt 0:00:48]} Kc8 {[%emt 0:00:
48]} 76. Qf5 {[%emt 0:00:50]} Kc7 {[%emt 0:00:49]} 77. Qe5+ {[%emt 0:00:48]}
Rd6+ {[%emt 0:00:50]} 78. Ke7 {[%emt 0:00:48] LimeFarActor won by resignation}
1-0

[Event "Fast Chess"]
[Site "ChessKid.com"]
[Date "2020.04.17"]
[Round "2"]
[White "Sasse, Gabriel"]
[Black "Georgiev, Maximilian"]
[Result "1-0"]
[ECO "B01"]
[WhiteElo "1251"]
[BlackElo "1345"]
[PlyCount "67"]
[EventDate "2020.??.??"]
[TimeControl "300+50"]
[WhiteClock "0:05:40"]
[BlackClock "0:05:51"]

1. e4 {[%emt 0:00:46]} d5 {[%emt 0:00:46]} 2. Nf3 {[%emt 0:00:46]} dxe4 {
[%emt 0:00:47]} 3. Ng1 {[%emt 0:00:46]} Nf6 {[%emt 0:00:47]} 4. d3 {[%emt 0:00:
48]} exd3 {[%emt 0:00:48]} 5. Bxd3 {[%emt 0:00:47]} e5 {[%emt 0:00:49]} 6. Bb5+
{[%emt 0:00:50]} Nc6 {[%emt 0:00:49]} 7. Qxd8+ {[%emt 0:00:47]} Kxd8 {[%emt 0:
00:49]} 8. Bxc6 {[%emt 0:00:49]} bxc6 {[%emt 0:00:47]} 9. Nf3 {[%emt 0:00:46]}
Bd6 {[%emt 0:00:48]} 10. O-O {[%emt 0:00:49]} Ke7 {[%emt 0:00:49]} 11. Re1 {
[%emt 0:00:50]} Nd7 {[%emt 0:00:51]} 12. Bf4 {[%emt 0:00:50]} f6 {[%emt 0:00:
48]} 13. Nc3 {[%emt 0:00:48]} Rf8 {[%emt 0:00:50]} 14. Re2 {[%emt 0:00:48]} Kf7
{[%emt 0:00:47]} 15. Bg3 {[%emt 0:00:49]} Kg8 {[%emt 0:00:47]} 16. Ne4 {
[%emt 0:00:50]} Bc5 {[%emt 0:00:50]} 17. Nxc5 {[%emt 0:00:47]} Nxc5 {[%emt 0:
00:46]} 18. Nh4 {[%emt 0:00:51]} Bg4 {[%emt 0:00:50]} 19. Ree1 {[%emt 0:00:50]}
Be6 {[%emt 0:00:53]} 20. Rad1 {[%emt 0:00:56]} Rad8 {[%emt 0:00:49]} 21. Rxd8 {
[%emt 0:00:48]} Rxd8 {[%emt 0:00:46]} 22. f4 {[%emt 0:00:49]} a6 {[%emt 0:00:
52]} 23. fxe5 {[%emt 0:00:48]} fxe5 {[%emt 0:00:47]} 24. Bxe5 {[%emt 0:00:47]}
Nd7 {[%emt 0:00:49]} 25. Bxc7 {[%emt 0:00:48]} Rc8 {[%emt 0:00:47]} 26. Rxe6 {
[%emt 0:00:48]} Rxc7 {[%emt 0:00:46]} 27. Re8+ {[%emt 0:00:47]} Kf7 {[%emt 0:
00:48]} 28. Re1 {[%emt 0:00:49]} Rb7 {[%emt 0:00:53]} 29. Rf1+ {[%emt 0:00:47]}
Kg8 {[%emt 0:00:48]} 30. b3 {[%emt 0:00:47]} Nc5 {[%emt 0:00:48]} 31. Nf5 {
[%emt 0:00:53]} Ne4 {[%emt 0:00:53]} 32. Re1 {[%emt 0:00:55]} Nc5 {[%emt 0:00:
55]} 33. Nd6 {[%emt 0:00:47]} Rd7 {[%emt 0:00:49]} 34. Re8# {[%emt 0:00:48]
LimeFarActor won by checkmate} 1-0

[Event "Fast Chess"]
[Site "ChessKid.com"]
[Date "2020.04.17"]
[Round "2"]
[White "Li, Tobias"]
[Black "Dai, Lana"]
[Result "1-0"]
[ECO "C50"]
[WhiteElo "1276"]
[BlackElo "1259"]
[PlyCount "89"]
[EventDate "2020.??.??"]
[TimeControl "300+50"]
[WhiteClock "0:04:04"]
[BlackClock "0:05:10"]

1. e4 {[%emt 0:00:46]} e5 {[%emt 0:00:47]} 2. Nf3 {[%emt 0:00:46]} Nf6 {
[%emt 0:00:47]} 3. Nc3 {[%emt 0:00:49]} Nc6 {[%emt 0:00:47]} 4. Bc4 {[%emt 0:
00:47]} h6 {[%emt 0:00:48]} 5. O-O {[%emt 0:00:48]} Bc5 {[%emt 0:00:48]} 6. h3
{[%emt 0:00:49]} d6 {[%emt 0:00:47]} 7. d3 {[%emt 0:00:47]} a6 {[%emt 0:00:49]}
8. a3 {[%emt 0:00:54]} b5 {[%emt 0:00:51]} 9. b4 {[%emt 0:00:49]} bxc4 {
[%emt 0:00:47]} 10. bxc5 {[%emt 0:00:47]} cxd3 {[%emt 0:00:50]} 11. cxd6 {
[%emt 0:00:47]} dxc2 {[%emt 0:00:53]} 12. dxc7 {[%emt 0:00:52]} Qxd1 {[%emt 0:
00:47]} 13. Nxd1 {[%emt 0:00:52]} cxd1=Q {[%emt 0:00:47]} 14. Rxd1 {[%emt 0:00:
49]} O-O {[%emt 0:00:56]} 15. Bb2 {[%emt 0:00:57]} Be6 {[%emt 0:01:09]} 16.
Bxe5 {[%emt 0:00:50]} Nxe5 {[%emt 0:00:53]} 17. Nxe5 {[%emt 0:00:47]} Rac8 {
[%emt 0:01:00]} 18. Rdc1 {[%emt 0:00:48]} Nxe4 {[%emt 0:00:56]} 19. Re1 {
[%emt 0:00:52]} Nd2 {[%emt 0:01:00]} 20. Red1 {[%emt 0:01:15]} Nb3 {[%emt 0:00:
50]} 21. Rab1 {[%emt 0:00:50]} f6 {[%emt 0:00:56]} 22. Nd7 {[%emt 0:00:49]}
Bxd7 {[%emt 0:00:59]} 23. Rxd7 {[%emt 0:00:49]} Na5 {[%emt 0:00:56]} 24. Rb6 {
[%emt 0:01:02]} Rfe8 {[%emt 0:00:59]} 25. Rxa6 {[%emt 0:00:56]} Re1+ {[%emt 0:
00:49]} 26. Kh2 {[%emt 0:00:48]} Nc6 {[%emt 0:00:58]} 27. Rxc6 {[%emt 0:00:52]}
Re2 {[%emt 0:00:54]} 28. Rd8+ {[%emt 0:00:57]} Re8 {[%emt 0:00:53]} 29. Rxe8+ {
[%emt 0:00:51]} Rxe8 {[%emt 0:00:47]} 30. c8=Q {[%emt 0:00:47]} Rxc8 {[%emt 0:
00:47]} 31. Rxc8+ {[%emt 0:00:47]} Kh7 {[%emt 0:00:47]} 32. Rc1 {[%emt 0:00:49]
} Kg6 {[%emt 0:00:50]} 33. Ra1 {[%emt 0:00:47]} f5 {[%emt 0:00:48]} 34. a4 {
[%emt 0:00:46]} h5 {[%emt 0:00:46]} 35. a5 {[%emt 0:00:46]} Kg5 {[%emt 0:00:54]
} 36. a6 {[%emt 0:00:48]} h4 {[%emt 0:00:47]} 37. a7 {[%emt 0:00:47]} Kf4 {
[%emt 0:00:49]} 38. a8=Q {[%emt 0:00:48]} g5 {[%emt 0:00:49]} 39. Qf3+ {
[%emt 0:00:46]} Ke5 {[%emt 0:00:48]} 40. Ra5+ {[%emt 0:00:48]} Kd6 {[%emt 0:00:
51]} 41. Qxf5 {[%emt 0:00:48]} g4 {[%emt 0:00:53]} 42. Qg6+ {[%emt 0:00:48]}
Kc7 {[%emt 0:00:52]} 43. Ra7+ {[%emt 0:00:46]} Kb8 {[%emt 0:00:47]} 44. Rh7 {
[%emt 0:00:48]} Kc8 {[%emt 0:00:48]} 45. Qg8# {[%emt 0:00:46] OnlyHungryKiwi
won by checkmate} 1-0

[Event "Fast Chess"]
[Site "ChessKid.com"]
[Date "2020.04.17"]
[Round "3"]
[White "Halimi, Dorian"]
[Black "Sasse, Gabriel"]
[Result "0-1"]
[ECO "A00"]
[WhiteElo "1061"]
[BlackElo "1255"]
[PlyCount "28"]
[EventDate "2020.??.??"]
[TimeControl "300+50"]
[WhiteClock "0:05:26"]
[BlackClock "0:04:55"]

1. e3 {[%emt 0:00:56]} e5 {[%emt 0:00:46]} 2. Qh5 {[%emt 0:00:48]} Nf6 {
[%emt 0:00:50]} 3. Qxe5+ {[%emt 0:00:47]} Be7 {[%emt 0:00:51]} 4. Bc4 {[%emt 0:
00:53]} O-O {[%emt 0:00:47]} 5. Bd3 {[%emt 0:00:53]} Bd6 {[%emt 0:00:50]} 6.
Qf5 {[%emt 0:00:49]} b6 {[%emt 0:00:50]} 7. Be4 {[%emt 0:00:56]} Nc6 {[%emt 0:
00:49]} 8. Bxc6 {[%emt 0:00:51]} dxc6 {[%emt 0:00:47]} 9. Qd3 {[%emt 0:00:50]}
Bb7 {[%emt 0:00:47]} 10. Nf3 {[%emt 0:00:47]} c5 {[%emt 0:00:47]} 11. O-O {
[%emt 0:00:50]} Bxf3 {[%emt 0:00:50]} 12. gxf3 {[%emt 0:00:49]} Ne8 {[%emt 0:
00:47]} 13. Nc3 {[%emt 0:00:48]} Qh4 {[%emt 0:00:47]} 14. Nb5 {[%emt 0:00:50]}
Qxh2# {[%emt 0:00:47] LimeFarActor won by checkmate} 0-1

[Event "Fast Chess"]
[Site "ChessKid.com"]
[Date "2020.04.19"]
[Round "1"]
[White "Sasse, Gabriel"]
[Black "Georgiev, Maximilian"]
[Result "1-0"]
[ECO "B01"]
[WhiteElo "1257"]
[BlackElo "1358"]
[PlyCount "85"]
[EventDate "2020.??.??"]
[TimeControl "300"]
[WhiteClock "0:02:14"]
[BlackClock "0:01:55"]

1. e4 {[%emt 0:00:00]} d5 {[%emt 0:00:01]} 2. exd5 {[%emt 0:00:02]} Qxd5 {
[%emt 0:00:01]} 3. Nc3 {[%emt 0:00:02]} Qd8 {[%emt 0:00:01]} 4. Nf3 {[%emt 0:
00:03]} Nf6 {[%emt 0:00:01]} 5. Bc4 {[%emt 0:00:04]} e6 {[%emt 0:00:01]} 6. O-O
{[%emt 0:00:04]} Be7 {[%emt 0:00:02]} 7. h3 {[%emt 0:00:00]} O-O {[%emt 0:00:
01]} 8. Ne1 {[%emt 0:00:02]} Nc6 {[%emt 0:00:01]} 9. Qf3 {[%emt 0:00:03]} g6 {
[%emt 0:00:11]} 10. Qd1 {[%emt 0:00:05]} Bd7 {[%emt 0:00:03]} 11. Bb5 {[%emt 0:
00:03]} a6 {[%emt 0:00:02]} 12. Bxc6 {[%emt 0:00:01]} Bxc6 {[%emt 0:00:02]} 13.
Qe2 {[%emt 0:00:02]} Bb5 {[%emt 0:00:05]} 14. Nxb5 {[%emt 0:00:04]} axb5 {
[%emt 0:00:01]} 15. Qxb5 {[%emt 0:00:02]} b6 {[%emt 0:00:04]} 16. Qe2 {[%emt 0:
00:06]} Re8 {[%emt 0:00:04]} 17. Qd1 {[%emt 0:00:01]} Kh8 {[%emt 0:00:02]} 18.
b3 {[%emt 0:00:01]} Kg7 {[%emt 0:00:03]} 19. Bb2 {[%emt 0:00:01]} Ra5 {[%emt 0:
00:05]} 20. Bc3 {[%emt 0:00:03]} Rb5 {[%emt 0:00:02]} 21. Qe2 {[%emt 0:00:07]}
Rc5 {[%emt 0:00:04]} 22. Bb4 {[%emt 0:00:06]} Rc6 {[%emt 0:00:04]} 23. Bxe7 {
[%emt 0:00:02]} Rxe7 {[%emt 0:00:00]} 24. Nf3 {[%emt 0:00:05]} Rxc2 {[%emt 0:
00:03]} 25. Ne1 {[%emt 0:00:12]} Rc6 {[%emt 0:00:02]} 26. Nf3 {[%emt 0:00:03]}
Rd6 {[%emt 0:00:08]} 27. Ne5 {[%emt 0:00:03]} Rxd2 {[%emt 0:00:06]} 28. Qe3 {
[%emt 0:00:06]} Qd5 {[%emt 0:00:05]} 29. Nf3 {[%emt 0:00:07]} Rc2 {[%emt 0:00:
06]} 30. Rad1 {[%emt 0:00:07]} Qb5 {[%emt 0:00:07]} 31. Nd4 {[%emt 0:00:11]}
Qc5 {[%emt 0:00:10]} 32. Nxc2 {[%emt 0:00:04]} Qxc2 {[%emt 0:00:01]} 33. Rc1 {
[%emt 0:00:08]} Qxa2 {[%emt 0:00:04]} 34. Qc3 {[%emt 0:00:11]} Qa7 {[%emt 0:00:
05]} 35. Ra1 {[%emt 0:00:02]} Qb7 {[%emt 0:00:03]} 36. g4 {[%emt 0:00:08]} e5 {
[%emt 0:00:06]} 37. g5 {[%emt 0:00:04]} Ne4 {[%emt 0:00:02]} 38. Qb4 {[%emt 0:
00:07]} Kf8 {[%emt 0:00:08]} 39. f3 {[%emt 0:00:04]} Nxg5 {[%emt 0:00:05]} 40.
Rad1 {[%emt 0:00:06]} Ke8 {[%emt 0:00:09]} 41. Qd2 {[%emt 0:00:07]} Nxh3+ {
[%emt 0:00:14]} 42. Kh2 {[%emt 0:00:05]} Nf4 {[%emt 0:00:04]} 43. Qd8# {
[%emt 0:00:02] LimeFarActor won by checkmate} 1-0

[Event "Fast Chess"]
[Site "ChessKid.com"]
[Date "2020.04.19"]
[Round "1"]
[White "Li, Tobias"]
[Black "Halimi, Dorian"]
[Result "1/2-1/2"]
[ECO "C00"]
[WhiteElo "1317"]
[BlackElo "1098"]
[PlyCount "115"]
[EventDate "2020.??.??"]
[TimeControl "300"]
[WhiteClock "0:02:20"]
[BlackClock "0:01:26"]

1. e4 {[%emt 0:00:00]} e6 {[%emt 0:00:02]} 2. Nf3 {[%emt 0:00:08]} Nf6 {
[%emt 0:00:02]} 3. Nc3 {[%emt 0:00:02]} Nc6 {[%emt 0:00:02]} 4. Bc4 {[%emt 0:
00:02]} Bb4 {[%emt 0:00:03]} 5. O-O {[%emt 0:00:04]} Bxc3 {[%emt 0:00:01]} 6.
bxc3 {[%emt 0:00:11]} Nxe4 {[%emt 0:00:04]} 7. d3 {[%emt 0:00:04]} Nxc3 {
[%emt 0:00:04]} 8. Qd2 {[%emt 0:00:06]} Nd5 {[%emt 0:00:04]} 9. Bxd5 {[%emt 0:
00:02]} exd5 {[%emt 0:00:02]} 10. Qg5 {[%emt 0:00:12]} Qxg5 {[%emt 0:00:05]}
11. Bxg5 {[%emt 0:00:04]} O-O {[%emt 0:00:02]} 12. Rfe1 {[%emt 0:00:10]} h6 {
[%emt 0:00:03]} 13. Be7 {[%emt 0:00:03]} Nxe7 {[%emt 0:00:06]} 14. Rxe7 {
[%emt 0:00:02]} b5 {[%emt 0:00:08]} 15. Rb1 {[%emt 0:00:04]} c6 {[%emt 0:00:02]
} 16. Rc1 {[%emt 0:00:11]} a5 {[%emt 0:00:02]} 17. c4 {[%emt 0:00:01]} b4 {
[%emt 0:00:08]} 18. cxd5 {[%emt 0:00:03]} cxd5 {[%emt 0:00:02]} 19. Ra1 {
[%emt 0:00:06]} a4 {[%emt 0:00:07]} 20. a3 {[%emt 0:00:04]} b3 {[%emt 0:00:02]}
21. Rb1 {[%emt 0:00:01]} Rb8 {[%emt 0:00:02]} 22. Re2 {[%emt 0:00:07]} Ba6 {
[%emt 0:00:04]} 23. Rd2 {[%emt 0:00:27]} Rfe8 {[%emt 0:00:07]} 24. d4 {[%emt 0:
00:08]} Re2 {[%emt 0:00:08]} 25. Rxe2 {[%emt 0:00:09]} Bxe2 {[%emt 0:00:01]}
26. Ne5 {[%emt 0:00:03]} d6 {[%emt 0:00:07]} 27. Nf3 {[%emt 0:00:14]} Bxf3 {
[%emt 0:00:03]} 28. gxf3 {[%emt 0:00:03]} b2 {[%emt 0:00:01]} 29. Kf1 {[%emt 0:
00:03]} Rb3 {[%emt 0:00:03]} 30. Ke2 {[%emt 0:00:03]} Kh7 {[%emt 0:00:03]} 31.
Kd2 {[%emt 0:00:01]} Rxa3 {[%emt 0:00:05]} 32. Kc2 {[%emt 0:00:01]} Rb3 {
[%emt 0:00:04]} 33. Rxb2 {[%emt 0:00:02]} Rxb2+ {[%emt 0:00:04]} 34. Kxb2 {
[%emt 0:00:01]} g5 {[%emt 0:00:03]} 35. Ka3 {[%emt 0:00:01]} f6 {[%emt 0:00:02]
} 36. Kxa4 {[%emt 0:00:01]} Kg6 {[%emt 0:00:01]} 37. Kb3 {[%emt 0:00:00]} f5 {
[%emt 0:00:01]} 38. Kc3 {[%emt 0:00:01]} h5 {[%emt 0:00:01]} 39. Kd3 {[%emt 0:
00:01]} g4 {[%emt 0:00:03]} 40. fxg4 {[%emt 0:00:01]} fxg4 {[%emt 0:00:02]} 41.
Ke3 {[%emt 0:00:01]} Kg5 {[%emt 0:00:01]} 42. f3 {[%emt 0:00:03]} gxf3 {
[%emt 0:00:04]} 43. Kxf3 {[%emt 0:00:02]} h4 {[%emt 0:00:01]} 44. h3 {[%emt 0:
00:06]} Kh5 {[%emt 0:00:02]} 45. Kf4 {[%emt 0:00:05]} Kh6 {[%emt 0:00:04]} 46.
Kg4 {[%emt 0:00:02]} Kg6 {[%emt 0:00:03]} 47. Kxh4 {[%emt 0:00:01]} Kf5 {
[%emt 0:00:01]} 48. Kg3 {[%emt 0:00:01]} Ke4 {[%emt 0:00:01]} 49. h4 {[%emt 0:
00:01]} Kxd4 {[%emt 0:00:01]} 50. h5 {[%emt 0:00:00]} Ke5 {[%emt 0:00:01]} 51.
h6 {[%emt 0:00:01]} Kf6 {[%emt 0:00:01]} 52. Kg4 {[%emt 0:00:01]} Kg6 {[%emt 0:
00:02]} 53. Kf4 {[%emt 0:00:00]} d4 {[%emt 0:00:04]} 54. Ke4 {[%emt 0:00:01]}
d3 {[%emt 0:00:01]} 55. Kxd3 {[%emt 0:00:01]} Kxh6 {[%emt 0:00:01]} 56. Kd4 {
[%emt 0:00:01]} Kg6 {[%emt 0:00:01]} 57. Kd5 {[%emt 0:00:01]} Kf6 {[%emt 0:00:
00]} 58. Kxd6 {[%emt 0:00:00] Game drawn - insufficient material} 1/2-1/2

[Event "Fast Chess"]
[Site "ChessKid.com"]
[Date "2020.04.19"]
[Round "2"]
[White "Sasse, Gabriel"]
[Black "Li, Tobias"]
[Result "1/2-1/2"]
[ECO "C50"]
[WhiteElo "1258"]
[BlackElo "1316"]
[PlyCount "133"]
[EventDate "2020.??.??"]
[TimeControl "300"]
[WhiteClock "0:00:02"]
[BlackClock "0:01:22"]

1. e4 {[%emt 0:00:00]} e5 {[%emt 0:00:03]} 2. Nf3 {[%emt 0:00:01]} Nc6 {
[%emt 0:00:02]} 3. Bc4 {[%emt 0:00:00]} Bc5 {[%emt 0:00:05]} 4. h3 {[%emt 0:00:
02]} Nf6 {[%emt 0:00:03]} 5. O-O {[%emt 0:00:01]} O-O {[%emt 0:00:02]} 6. Ne1 {
[%emt 0:00:01]} Ne8 {[%emt 0:00:09]} 7. Qg4 {[%emt 0:00:07]} Nf6 {[%emt 0:00:
02]} 8. Qg3 {[%emt 0:00:02]} Re8 {[%emt 0:00:03]} 9. d3 {[%emt 0:00:02]} d5 {
[%emt 0:00:04]} 10. exd5 {[%emt 0:00:01]} Nxd5 {[%emt 0:00:18]} 11. Bh6 {
[%emt 0:00:03]} Qf6 {[%emt 0:00:06]} 12. Bg5 {[%emt 0:00:03]} Qg6 {[%emt 0:00:
01]} 13. Bxd5 {[%emt 0:00:13]} h6 {[%emt 0:00:06]} 14. Be3 {[%emt 0:00:07]}
Bxe3 {[%emt 0:00:11]} 15. Qxe3 {[%emt 0:00:05]} Nd4 {[%emt 0:00:11]} 16. Qd2 {
[%emt 0:00:10]} Bxh3 {[%emt 0:00:11]} 17. Be4 {[%emt 0:00:05]} Bf5 {[%emt 0:00:
08]} 18. Bxf5 {[%emt 0:00:04]} Qxf5 {[%emt 0:00:07]} 19. c3 {[%emt 0:00:02]}
Nc6 {[%emt 0:00:09]} 20. d4 {[%emt 0:00:03]} exd4 {[%emt 0:00:03]} 21. cxd4 {
[%emt 0:00:01]} Qd5 {[%emt 0:00:05]} 22. Nc3 {[%emt 0:00:03]} Qxd4 {[%emt 0:00:
03]} 23. Qxd4 {[%emt 0:00:02]} Nxd4 {[%emt 0:00:01]} 24. Nd5 {[%emt 0:00:05]}
Rac8 {[%emt 0:00:25]} 25. Rd1 {[%emt 0:00:04]} Ne2+ {[%emt 0:00:06]} 26. Kh1 {
[%emt 0:00:05]} Kf8 {[%emt 0:00:13]} 27. Nf3 {[%emt 0:00:07]} Rcd8 {[%emt 0:00:
19]} 28. Rfe1 {[%emt 0:00:04]} Nf4 {[%emt 0:00:06]} 29. Rxe8+ {[%emt 0:00:05]}
Kxe8 {[%emt 0:00:03]} 30. g3 {[%emt 0:00:04]} Nxd5 {[%emt 0:00:09]} 31. Ne5 {
[%emt 0:00:03]} Nf6 {[%emt 0:00:08]} 32. Rxd8+ {[%emt 0:00:05]} Kxd8 {[%emt 0:
00:07]} 33. Nxf7+ {[%emt 0:00:01]} Ke7 {[%emt 0:00:03]} 34. Ne5 {[%emt 0:00:02]
} Ne4 {[%emt 0:00:03]} 35. Kg2 {[%emt 0:00:04]} Ke6 {[%emt 0:00:04]} 36. Nd3 {
[%emt 0:00:02]} Nf6 {[%emt 0:00:06]} 37. Nc5+ {[%emt 0:00:03]} Kd6 {[%emt 0:00:
02]} 38. Nxb7+ {[%emt 0:00:01]} Kc6 {[%emt 0:00:01]} 39. Na5+ {[%emt 0:00:01]}
Kb6 {[%emt 0:00:02]} 40. Nc4+ {[%emt 0:00:01]} Kc6 {[%emt 0:00:04]} 41. Ne5+ {
[%emt 0:00:02]} Kd6 {[%emt 0:00:01]} 42. Nf7+ {[%emt 0:00:06]} Ke7 {[%emt 0:00:
02]} 43. Ne5 {[%emt 0:00:02]} Ke6 {[%emt 0:00:01]} 44. Nd3 {[%emt 0:00:01]} Kd5
{[%emt 0:00:01]} 45. Nb4+ {[%emt 0:00:02]} Kc4 {[%emt 0:00:01]} 46. Na6 {
[%emt 0:00:01]} Nd5 {[%emt 0:00:04]} 47. b3+ {[%emt 0:00:02]} Kb5 {[%emt 0:00:
03]} 48. Nb8 {[%emt 0:00:03]} Kb4 {[%emt 0:00:02]} 49. Nd7 {[%emt 0:00:04]} Ka3
{[%emt 0:00:01]} 50. f4 {[%emt 0:00:05]} Kxa2 {[%emt 0:00:01]} 51. g4 {[%emt 0:
00:01]} Kxb3 {[%emt 0:00:01]} 52. f5 {[%emt 0:00:01]} a5 {[%emt 0:00:00]} 53.
Kh3 {[%emt 0:00:06]} a4 {[%emt 0:00:02]} 54. Kh4 {[%emt 0:00:02]} a3 {[%emt 0:
00:02]} 55. Kh5 {[%emt 0:00:01]} a2 {[%emt 0:00:01]} 56. g5 {[%emt 0:00:01]}
hxg5 {[%emt 0:00:01]} 57. Kxg5 {[%emt 0:00:01]} a1=Q {[%emt 0:00:01]} 58. Kg6 {
[%emt 0:00:02]} Nf4+ {[%emt 0:00:02]} 59. Kg5 {[%emt 0:00:02]} Qg1+ {[%emt 0:
00:00]} 60. Kh4 {[%emt 0:00:04]} Qg2 {[%emt 0:00:07]} 61. Ne5 {[%emt 0:00:09]}
Kc3 {[%emt 0:00:03]} 62. Ng4 {[%emt 0:00:05]} Kd4 {[%emt 0:00:02]} 63. f6 {
[%emt 0:00:03]} gxf6 {[%emt 0:00:02]} 64. Nxf6 {[%emt 0:00:01]} Ke5 {[%emt 0:
00:01]} 65. Nh5 {[%emt 0:00:04]} Kf5 {[%emt 0:00:01]} 66. Ng7+ {[%emt 0:00:07]}
Kf6 {[%emt 0:00:02]} 67. Nh5+ {[%emt 0:00:05] Game drawn - timeout vs
insufficient material} 1/2-1/2

[Event "Fast Chess"]
[Site "ChessKid.com"]
[Date "2020.04.19"]
[Round "2"]
[White "Halimi, Dorian"]
[Black "Li, Patrick"]
[Result "0-1"]
[ECO "C20"]
[WhiteElo "1090"]
[BlackElo "1095"]
[PlyCount "50"]
[EventDate "2020.??.??"]
[TimeControl "300"]
[WhiteClock "0:02:35"]
[BlackClock "0:03:00"]

1. e4 {[%emt 0:00:00]} e5 {[%emt 0:00:02]} 2. Qh5 {[%emt 0:00:02]} Nc6 {
[%emt 0:00:03]} 3. Bc4 {[%emt 0:00:03]} g6 {[%emt 0:00:04]} 4. Qf3 {[%emt 0:00:
02]} Nf6 {[%emt 0:00:04]} 5. Nh3 {[%emt 0:00:05]} Bc5 {[%emt 0:00:08]} 6. Ng5 {
[%emt 0:00:04]} O-O {[%emt 0:00:14]} 7. Nxf7 {[%emt 0:00:03]} Rxf7 {[%emt 0:00:
02]} 8. Bxf7+ {[%emt 0:00:03]} Kxf7 {[%emt 0:00:02]} 9. O-O {[%emt 0:00:02]}
Kg7 {[%emt 0:00:10]} 10. Nc3 {[%emt 0:00:02]} Ng4 {[%emt 0:00:03]} 11. Qxg4 {
[%emt 0:00:05]} d5 {[%emt 0:00:02]} 12. exd5 {[%emt 0:00:01]} Bxg4 {[%emt 0:00:
07]} 13. dxc6 {[%emt 0:00:04]} bxc6 {[%emt 0:00:05]} 14. h3 {[%emt 0:00:06]}
Bd7 {[%emt 0:00:07]} 15. g4 {[%emt 0:00:03]} Qf6 {[%emt 0:00:13]} 16. d3 {
[%emt 0:00:03]} Re8 {[%emt 0:00:08]} 17. Be3 {[%emt 0:00:03]} Bxe3 {[%emt 0:00:
06]} 18. fxe3 {[%emt 0:00:03]} Qe6 {[%emt 0:00:05]} 19. b4 {[%emt 0:00:06]} Rf8
{[%emt 0:00:03]} 20. Rfe1 {[%emt 0:00:06]} Qf6 {[%emt 0:00:05]} 21. a4 {
[%emt 0:00:03]} Qf2+ {[%emt 0:00:04]} 22. Kh1 {[%emt 0:00:04]} Qg3 {[%emt 0:00:
10]} 23. b5 {[%emt 0:00:05]} cxb5 {[%emt 0:00:06]} 24. axb5 {[%emt 0:00:02]}
Rf2 {[%emt 0:00:08]} 25. Rg1 {[%emt 0:00:40]} Qh2# {[%emt 0:00:04]
WideClassyQuiz won by checkmate} 0-1